Cogmind - Beta 10.2 @@@ ROGUE MODE // 2021.07.02 @ 22:47:49 Player: Wisp Result: Destroyed by B-86 Titan with Railgun Performance ------------- Evolutions (6) 3000 Regions Visited (14) 2800 Robots Destroyed (152) 760 Value Destroyed (6139) 6139 Prototype IDs (33) 660 Alien Tech Used (0) 0 Bonus (-567) -567 TOTAL SCORE: 12792 Bonus ------- High Alert Combat Kills 161 Follower Combat Kills 255 Aligned with FarCom 300 Friendly Fire -1283 Cogmind --------- Core Integrity 0/1150 Matter 300/300 Energy 73/100 System Corruption 15% Temperature Cool (9) Movement Core (50) Location -4/Extension Parts ------- > --- POWER (2) -------- (None) > --- PROPULSION (4) --- (None) > --- UTILITY (10) ----- (None) > --- WEAPON (3) ------- (None) > --- INVENTORY (4) ---- Quantum Capacitor Plasma Rifle Disruptor Cannon Peak State ------------ > --- POWER ------------ Cooled Fission Core Light Antimatter Reactor > --- PROPULSION ------- Heavy Treads Flexi-carbon Leg Flexi-carbon Leg > --- UTILITY ---------- Advanced Heat Sink Advanced Heat Sink Advanced Heat Sink Humpback Targeting Computer Improved Target Analyzer Improved Weapon Cycler Improved Heavy Armor Plating > --- WEAPON ----------- Dispersion Rifle Long-range Phase Cannon Hypervelocity Mass Driver > --- INVENTORY -------- Light Antimatter Reactor Antigrav System Antigrav System Antigrav System Antigrav System Antigrav System Advanced Heat Sink Gravity Neutralizing Apparatus Terrain Scanner Improved Component Analysis Suite Improved System Backup Module Phase Gun Disruptor Cannon Disruptor Cannon Disruptor Cannon Disruptor Cannon Long-range Phase Cannon KE Penetrator Hypervelocity Coil Gun Heavy Shock Bomb Launcher Heavy Shock Bomb Launcher Heavy Shock Bomb Launcher Improved Remote Datajack Lance [Rating: 111] Favorites ----------- Power Light Antimatter Reactor Engine Ion Engine Power Core Cooled Fission Core Reactor Light Antimatter Reactor Propulsion Medium Treads Treads Medium Treads Leg Flexi-carbon Leg Hover Unit Gravmag Array Flight Unit Nuclear Pulse Array Utility Humpback Device Improved Cooling System Storage Humpback Processor Improved Target Analyzer Hackware Hacking Suite Protection Hardened Heavy Armor Plating Weapon Guided Plasma Cannon Energy Gun Heavy Particle Gun Energy Cannon Guided Plasma Cannon Ballistic Gun Hypervelocity Coil Gun Ballistic Cannon Hypervelocity Mass Driver Launcher Proton Missile Launcher Special Weapon Welding Torch Impact Weapon Hammer Slashing Weapon Chainsword Piercing Weapon Lance Build | -11 -10 -10 -10 -9 -8 -7 -7 -7 -6 -5 -5 -5 -4 -4 ------- Run | Scr Mat Min Exi Min Mat Fac Low Low Fac Fac Was Fac Fac Ext Slots Evolved 12 | . . . . . 4 2 . . 2 2 . . 2 . Power 1 | . . . . . . . . . . . . . 1 . Propulsion 2 | . . . . . 1 1 . . . . . . . . Utility 8 | . . . . . 3 1 . . 2 2 . . . . Weapon 1 | . . . . . . . . . . . . . 1 . Parts Attached 197 | 6 16 . 2 2 7 8 8 . 11 22 25 38 27 25 Power 23 | 1 2 . . 1 . . 1 . 3 3 2 4 2 4 Engine 8 | 1 2 . . 1 . . . . 2 . . 2 . . Core 9 | . . . . . . . . . 1 3 2 2 1 . Reactor 6 | . . . . . . . 1 . . . . . 1 4 Propulsion 39 | 2 2 . . . 4 1 . . 1 3 6 5 6 9 Treads 28 | 2 2 . . . 4 1 . . 1 3 6 2 2 5 Leg 8 | . . . . . . . . . . . . 2 2 4 Wheel . | . . . . . . . . . . . . . . . Hover 2 | . . . . . . . . . . . . . 2 . Flight 1 | . . . . . . . . . . . . 1 . . Utility 79 | 1 6 . 1 . 2 3 2 . 7 12 7 22 8 8 Device 51 | . . . . . 1 3 1 . 5 10 5 13 7 6 Storage 12 | 1 6 . 1 . . . 1 . . 1 . 2 . . Processor 7 | . . . . . . . . . 1 1 . 4 . 1 Hackware 1 | . . . . . . . . . . . . 1 . . Protection 8 | . . . . . 1 . . . 1 . 2 2 1 1 Artifact . | . . . . . . . . . . . . . . . Weapon 56 | 2 6 . 1 1 1 4 5 . . 4 10 7 11 4 Energy Gun 20 | 1 2 . . . . 3 1 . . 2 2 2 6 1 Energy Cannon 14 | . 1 . 1 . . . 2 . . . 5 1 3 1 Ballistic Gun 6 | 1 1 . . . . . . . . . . 1 2 1 Ballistic Cannon 2 | . . . . . . . . . . . 1 1 . . Launcher 1 | . . . . . . . . . . . 1 . . . Special Weapon 2 | . . . . . . . . . . . . 2 . . Impact Weapon 2 | . 1 . . 1 . . . . . . . . . . Slashing Weapon 8 | . 1 . . . 1 1 2 . . 2 1 . . . Piercing Weapon 1 | . . . . . . . . . . . . . . 1 Special Melee Weapon . | . . . . . . . . . . . . . . . Unidentified Prototypes 5 | . . . . . . . . . . 3 1 1 . . Parts Lost 81 | . . . . . . . 2 1 . 1 22 5 6 44 Power 8 | . . . . . . . . 1 . . 2 . . 5 Propulsion 18 | . . . . . . . . . . 1 6 1 . 10 Utility 30 | . . . . . . . 1 . . . 10 3 3 13 Weapon 25 | . . . . . . . 1 . . . 4 1 3 16 Highest Loss Streak 29 | . . . . . . . 1 1 . 1 22 4 2 29 Average Slot Usage (%) 84 | . 98 100 90 85 81 84 83 84 85 87 51 73 83 86 Engine 4 | . 13 14 14 14 9 7 . . 2 . . 1 . . Core 2 | . . . . . . . . . 3 5 2 3 7 2 Reactor 1 | . . . . . . . 6 7 . . . . 2 6 Treads 21 | . 27 28 28 28 27 30 30 30 26 22 11 6 7 15 Leg 1 | . . . . . . . . . . . . . 7 1 Device 13 | . . . . . 9 15 13 7 12 16 11 30 20 25 Storage 11 | . 27 28 19 14 9 7 8 15 13 11 7 4 5 4 Processor 4 | . . . . . . . . . 5 10 6 4 10 9 Protection 4 | . . . . . 9 7 7 7 6 5 3 3 5 3 Energy Gun 4 | . 9 14 2 . . 15 12 . . . . 2 5 6 Energy Cannon 7 | . 7 14 25 19 9 . 1 7 6 5 2 1 2 5 Ballistic Gun 1 | . 6 . . . . . . . . . . . 2 1 Ballistic Cannon 1 | . . . . . . . . . . . . 4 4 . Impact Weapon 1 | . 2 . . 8 3 . . . . . . . . . Slashing Weapon 1 | . 1 . . . 5 . 1 7 6 4 2 . . . Naked Turns 17 | . . . . . . . . . . . . . . 17 Heaviest Build 154 | 11 34 34 98 102 124 122 130 130 132 139 139 140 154 148 Greatest Support 140 | 40 40 40 40 40 84 112 112 112 114 114 114 140 128 128 Greatest Overweight (x) 4 | . 4 . 2 2 2 1 1 1 1 1 3 1 2 2 Average Overweight (x) 1 | . . . 1 2 1 1 1 1 1 1 . . 1 . Largest Inventory Capacity 24 | 6 16 14 24 24 24 24 24 24 24 24 24 24 24 24 Average Capacity 21 | 5 10 14 20 24 24 24 24 24 24 24 16 21 24 23 Most Carried 24 | 4 14 14 23 24 24 24 24 23 24 24 24 24 24 24 Average Carried 20 | 2 10 13 18 23 23 23 23 23 23 23 14 17 23 22 Final Capacity 24 | 6 14 14 24 24 24 24 24 24 24 24 4 24 24 4 Final Carried 24 | 4 14 14 23 24 24 24 23 23 24 24 4 24 24 4 Class Distribution -------------------- 58% | Hauler-Mutant 16% | Mutant 13% | Scavenger-Gunner 4% | Hauler-Skirmisher 3% | Scavenger-Skirmisher 3% | Scavenger-Mutant Dominant Class ---------------- Mutant | -10/Materials Mutant | -10/Mines Hauler-Mutant | -10/Exiles Hauler-Mutant | -9/Mines Hauler-Mutant | -8/Materials Hauler-Mutant | -7/Factory Hauler-Mutant | -7/Lower Caves Hauler-Mutant | -7/Lower Caves Hauler-Mutant | -6/Factory Hauler-Mutant | -5/Factory Mutant | -5/Waste Hauler-Skirmisher | -5/Factory Scavenger-Gunner | -4/Factory Scavenger-Gunner | -4/Extension Resources | -11 -10 -10 -10 -9 -8 -7 -7 -7 -6 -5 -5 -5 -4 -4 ----------- Run | Scr Mat Min Exi Min Mat Fac Low Low Fac Fac Was Fac Fac Ext Matter Collected 4218 | 142 410 15 20 20 70 80 80 . 100 220 200 1767 800 294 Remotely . | . . . . . . . . . . . . . . . Salvage Created 8571 | . 784 42 . 223 751 177 532 74 815 451 598 2303 1272 549 Parts 371 | . 36 4 . 9 31 10 23 1 19 24 12 117 62 23 Haulers Intercepted 7 | . 2 . . . 1 1 . . 1 1 . 1 . . Recyclers Shooed 8 | . 1 . . . . . . . . . . 3 4 . Parts Field Recycled . | . . . . . . . . . . . . . . . Retrieved Matter . | . . . . . . . . . . . . . . . Parts Self-Destructed 17 | . . . . . . . 17 . . . . . . . Prevented 9 | . . . . . . . 9 . . . . . . . Kills | -11 -10 -10 -10 -9 -8 -7 -7 -7 -6 -5 -5 -5 -4 -4 ------- Run | Scr Mat Min Exi Min Mat Fac Low Low Fac Fac Was Fac Fac Ext Combat Hostiles Destroyed 103 | . 12 3 . 2 13 2 7 . 8 4 2 25 18 7 Melee 9 | . 2 . . . 2 . 1 . 1 . 1 . . 2 Guns 33 | . 6 3 . . . 2 6 . . . . 5 7 4 Cannons 55 | . 3 . . 2 10 . . . 4 3 1 20 11 1 Classes Destroyed 14 | . 6 1 . . 3 . . . 1 1 1 1 . . Worker 4 | . . . . . . . . . . . . 4 . . Builder 11 | . 1 . . . . . . . . . . 7 2 1 Hauler 7 | . 2 . . . 1 1 . . 1 1 . 1 . . Recycler 9 | . 2 . . . 1 . . . 1 . . 4 1 . Mechanic 1 | . 1 . . . . . . . . . . . . . Operator 3 | . 1 . . . 1 . . . . . . . . 1 Watcher 13 | . . . . . 2 . . . 2 3 . 1 5 . Swarmer 10 | . . 3 . . 3 . . . . . . . 4 . Grunt 53 | . 12 . . 2 7 2 6 . 2 . . 15 3 4 Duelist 1 | . . . . . 1 . . . . . . . . . Sentry 12 | . . . . . 2 . 1 . 3 1 . 3 1 1 Hunter 11 | . . . . . . . . . 3 . . 4 2 2 Programmer 14 | . . . . . . . . . . 3 . 3 8 . Compactor 2 | . . . . . . . . . . . 2 . . . Packrat 1 | . . . . . . . . 1 . . . . . . Best Kill Streak 12 | . 3 3 . 2 4 2 2 . 3 2 1 12 4 2 Combat Bots Only 7 | . 3 3 . 2 4 2 2 . 3 2 1 7 4 2 Max Kills in Single Turn 2 | . 1 1 . 1 1 1 1 1 1 1 1 2 2 1 Gunslinging . | . . . . . . . . . . . . . . . Exploded . | . . . . . . . . . . . . . . . Melee 1 | . 1 . . . 1 . 1 . 1 . 1 . . 1 Uniques/NPCs Destroyed 1 | . . . . 1 . . . . . . . . . . YI-UF0 (-9/Mines) Combat | -11 -10 -10 -10 -9 -8 -7 -7 -7 -6 -5 -5 -5 -4 -4 -------- Run | Scr Mat Min Exi Min Mat Fac Low Low Fac Fac Was Fac Fac Ext Damage Taken 11649 | . 489 49 . . 308 127 567 87 659 365 1291 2621 1565 3521 Core 1735 | . 97 9 . . 15 . 50 . 57 166 136 43 146 1016 Absorbed by Shields 448 | . . . . . . . . . . . 26 398 . 24 Reduced by Siege Mode 137 | . . . . . . . . . . . . 113 24 . Core Remaining (%) 84 | 100 . . . 57 97 . . 92 93 . . 65 . . Volleys Fired 514 | . 65 3 . 9 63 9 16 2 53 21 13 160 68 32 Largest 3 | . 2 2 . 1 1 2 2 1 1 1 2 2 3 3 Hottest 281 | . 110 110 . 120 120 110 110 120 120 120 129 147 281 281 Shots Fired 812 | . 97 6 . 9 62 18 32 2 53 21 15 222 184 91 Gun 317 | . 81 3 . . . 18 32 . . . 3 55 84 41 Cannon 484 | . 16 3 . 9 62 . . 2 53 21 8 160 100 50 Launcher 4 | . . . . . . . . . . . 4 . . . Special 7 | . . . . . . . . . . . . 7 . . Kinetic 307 | . 49 . . . . . . . . . . 158 96 4 Thermal 430 | . 48 6 . 9 62 9 16 2 53 21 10 54 75 65 Explosive . | . . . . . . . . . . . . . . . Electromagnetic 75 | . . . . . . 9 16 . . . 5 10 13 22 Robot Hit Streak 61 | . 15 3 . 8 31 10 24 25 47 55 61 27 21 15 Robot Miss Streak 8 | . 5 . . . . 1 2 . . . 1 3 3 8 Penetration Max 1 | . . . . . . . . . . . . 1 1 . Secondary Targets 1 | . . . . . . . 1 . . . . . . . Max Gunslinging Chain 1 | . . . . . . . 1 . . . . . . . Shots Hit Robots 585 | . 85 3 . 8 28 14 34 1 27 8 17 169 131 60 Core Hits 241 | . 29 3 . 3 17 5 18 1 18 9 6 64 50 18 Critical Hits 106 | . 1 . . . 3 . . . 2 . 1 69 26 4 Critical Kills 38 | . . . . . . . . . . . 1 30 6 1 Critical Parts Destroyed 63 | . 1 . . . 2 . . . 2 . . 36 20 2 Melee Attacks 58 | . 27 . . 3 5 . 7 . 5 . 6 . . 5 Impact 20 | . 17 . . 3 . . . . . . . . . . Slashing 33 | . 10 . . . 5 . 7 . 5 . 6 . . . Piercing 5 | . . . . . . . . . . . . . . 5 Sneak Attacks 7 | . 3 . . 3 . . . . 1 . . . . . Combat Hostiles . | . . . . . . . . . . . . . . . Follow-up Attacks . | . . . . . . . . . . . . . . . Damage Inflicted 16915 | . 1454 37 . 432 2370 276 1060 82 2087 924 558 2861 3472 1302 Guns 4427 | . 723 37 . . . 276 622 . . . 30 756 1424 559 Cannons 10362 | . 211 . . 288 2203 . . 79 1829 924 318 2099 1830 581 Explosions 323 | . . . . . . . . . . . 105 . 218 . Melee 1730 | . 520 . . 144 167 . 438 . 258 . 105 . . 98 Ramming 67 | . . . . . . . . 3 . . . . . 64 Kinetic 3501 | . 422 . . . . . . . . . . 1742 1310 27 Thermal 10610 | . 512 37 . 288 2203 110 292 79 1829 924 441 978 2024 893 Explosive . | . . . . . . . . . . . . . . . Electromagnetic 1007 | . . . . . . 166 330 . . . 12 141 138 220 Impact 525 | . 381 . . 144 . . . . . . . . . . Slashing 1107 | . 139 . . . 167 . 438 . 258 . 105 . . . Piercing 98 | . . . . . . . . . . . . . . 98 Highest Corruption 17 | . . . . . . . . . . 3 4 15 1 17 Average Corruption 5 | . . . . . . . . . . 1 3 7 1 6 Corruption Purged 6 | . . . . . . . . . . . . 2 1 3 Effects 119 | . . . . . . . . . . 7 6 78 1 27 Message Errors 18 | . . . . . . . . . . 3 2 9 1 3 Matter Fused 22 | . . . . . . . . . . 2 1 15 . 4 Heat Flow Errors 14 | . . . . . . . . . . . 1 12 . 1 Energy Discharges 10 | . . . . . . . . . . . 1 6 . 3 Parts Rejected 1 | . . . . . . . . . . . . 1 . . Data Loss (minor) 13 | . . . . . . . . . . 2 . 7 . 4 Data Loss (major) 4 | . . . . . . . . . . . . 3 . 1 Misfires 4 | . . . . . . . . . . . . 3 . 1 Alerts 1 | . . . . . . . . . . . . . . 1 Misdirections 7 | . . . . . . . . . . . . 5 . 2 Targeting Errors 21 | . . . . . . . . . . . 1 14 . 6 Weapon Failures 4 | . . . . . . . . . . . . 3 . 1 Overload Shots . | . . . . . . . . . . . . . . . Overflow Damage 671 | . 75 . . 21 101 . 89 . 55 84 42 . 185 19 Projectiles 315 | . . . . 17 101 . . . 55 84 . . 39 19 Explosions 188 | . . . . . . . . . . . 42 . 146 . Melee 168 | . 75 . . 4 . . 89 . . . . . . . Knockbacks 35 | . 1 . . 1 . . . . . . . 20 12 1 Impact 3 | . 1 . . 1 . . . . . . . . . 1 Kinetic 30 | . . . . . . . . . . . . 18 12 . Secondary 2 | . . . . . . . . . . . . 2 . . Self-Inflicted Damage 334 | . . . . . . . . . . . 111 . 221 2 Shots 7 | . . . . . . . . . . . 4 . 3 . Rammed 9 | . . . . . . . . 1 . . . . . 8 Targets Rammed 11 | . . . . . . . . 1 . . . . . 10 Kicked . | . . . . . . . . . . . . . . . Crushed 2 | . . . . . . . . . . . . . . 2 Highest Temperature 384 | . 156 144 . 336 228 6 56 36 324 131 191 352 384 37 Average Temperature 87 | . 51 75 . 130 82 3 23 27 106 46 54 91 136 16 Received Heat Transfer 1132 | . 303 . . . 108 72 300 . 9 12 . 51 27 250 Effects 6 | . . . . 2 . . . . 1 . . . 3 . Energy Bleed 1 | . . . . . . . . . . . . . 1 . Interference 2 | . . . . 2 . . . . . . . . . . Short Circuit 1 | . . . . . . . . . . . . . 1 . Damage (minor) 2 | . . . . . . . . . 1 . . . 1 . Siege Activations 15 | . . . . . . . . . . . . 9 6 . Total Turns 677 | . . . . . . . . . . . . 256 421 . Longest Duration 167 | . . . . . . . . . . . . 73 167 . Robots Corrupted . | . . . . . . . . . . . . . . . Combat Hostiles . | . . . . . . . . . . . . . . . Parts Fried 8 | . 5 . . 1 . 1 1 . . . . . . . Impact Corruptions 4 | . 3 . . 1 . . . . . . . . . . Robots Melted 6 | . . . . . 1 . . . 4 1 . . . . Combat Hostiles 5 | . . . . . 1 . . . 3 1 . . . . Parts Melted 34 | . 2 . . 2 9 . . . 12 3 . 2 4 . Heat Transferred 19166 | . 1332 111 . 640 4880 185 518 160 4000 1600 612 1616 2365 1147 Parts Sabotaged . | . . . . . . . . . . . . . . . Parts Stolen . | . . . . . . . . . . . . . . . Parts Stripped . | . . . . . . . . . . . . . . . Power Chain Reactions 1 | . . . . . . . . . . . 1 . . . Missiles Intercepted . | . . . . . . . . . . . . . . . Alert | -11 -10 -10 -10 -9 -8 -7 -7 -7 -6 -5 -5 -5 -4 -4 ------- Run | Scr Mat Min Exi Min Mat Fac Low Low Fac Fac Was Fac Fac Ext Peak Influence 661 | . 172 95 . 50 291 139 . . 220 102 15 549 661 353 Initial 292 | . . 25 . . . 132 . . . 58 . 10 249 292 Average 135 | . 71 94 . 5 86 98 . . 71 45 1 227 313 234 Maximum Alert Level 2 | . . . . . 1 . . . 1 . . 2 2 1 Low Security (%) 76 | 100 100 100 . 100 84 100 . . 99 100 100 52 41 24 Level 1 12 | . . . . . 15 . . . . . . 17 20 75 Level 2 10 | . . . . . . . . . . . . 29 37 . Level 3 . | . . . . . . . . . . . . . . . Level 4 . | . . . . . . . . . . . . . . . Level 5 . | . . . . . . . . . . . . . . . High Security . | . . . . . . . . . . . . . . . Max Security . | . . . . . . . . . . . . . . . Squads Dispatched 39 | . 4 . . 2 7 2 . . 3 4 . 8 5 4 Investigation 13 | . 3 . . 2 2 . . . 1 1 . 2 . 2 Extermination 10 | . . . . . . . . . 1 2 . 3 4 . Reinforcement 12 | . 1 . . . 2 2 . . 1 1 . 3 . 2 Assault 1 | . . . . . . . . . . . . . 1 . Garrison 3 | . . . . . 3 . . . . . . . . . Intercept . | . . . . . . . . . . . . . . . Construction Impeded 3 | . . . . . . . . . . . . 2 . 1 Haulers Reinforced 2 | . . . . . . 1 . . . 1 . . . . Stealth | -11 -10 -10 -10 -9 -8 -7 -7 -7 -6 -5 -5 -5 -4 -4 --------- Run | Scr Mat Min Exi Min Mat Fac Low Low Fac Fac Was Fac Fac Ext Distress Signals 12 | . 3 . . . 2 . . . 1 . . 3 2 1 Communications Jammed . | . . . . . . . . . . . . . . . Distress Signals . | . . . . . . . . . . . . . . . Times Spotted 190 | . 28 2 . 1 26 5 11 4 10 6 6 43 28 20 Peak Tracking Total 7 | . 4 2 . 2 4 3 3 4 3 2 4 7 5 4 Tactical Retreats 24 | . 1 . . . 4 1 5 . 1 . . 8 2 2 Traps | -11 -10 -10 -10 -9 -8 -7 -7 -7 -6 -5 -5 -5 -4 -4 ------- Run | Scr Mat Min Exi Min Mat Fac Low Low Fac Fac Was Fac Fac Ext Traps Triggered 6 | . 3 . . . . . . . . 1 . 1 . 1 Indirectly . | . . . . . . . . . . . . . . . Trap Hack Attempts . | . . . . . . . . . . . . . . . Triggered . | . . . . . . . . . . . . . . . Disarmed . | . . . . . . . . . . . . . . . Reprogrammed . | . . . . . . . . . . . . . . . Reused . | . . . . . . . . . . . . . . . Traps Extracted . | . . . . . . . . . . . . . . . Installed . | . . . . . . . . . . . . . . . Triggered 2 | . . . . . . . 2 . . . . . . . Machines | -11 -10 -10 -10 -9 -8 -7 -7 -7 -6 -5 -5 -5 -4 -4 ---------- Run | Scr Mat Min Exi Min Mat Fac Low Low Fac Fac Was Fac Fac Ext Machines Disabled 14 | . 1 . . . . . . . . . . 1 11 1 Max in Single Turn 6 | . 1 . . . . . . . . . . 1 6 1 Garrison Access 2 | . . . . . . . . . 1 1 . . . . Machines Sabotaged . | . . . . . . . . . . . . . . . Garrisons Compromised . | . . . . . . . . . . . . . . . Overloaded Fab Kills . | . . . . . . . . . . . . . . . Fab Network Shutdowns . | . . . . . . . . . . . . . . . Hacking | -11 -10 -10 -10 -9 -8 -7 -7 -7 -6 -5 -5 -5 -4 -4 --------- Run | Scr Mat Min Exi Min Mat Fac Low Low Fac Fac Was Fac Fac Ext Machines Accessed 47 | . 9 . 1 3 4 3 1 . 5 7 . 5 1 8 Terminals 28 | . 7 . . 2 3 2 1 . 3 . . 2 1 7 Fabricators 2 | . . . . . . . . . . 1 . 1 . . Repair Stations 3 | . . . . . . . . . . 3 . . . . Recycling Units 6 | . 2 . . . . . . . 1 1 . 1 . 1 Scanalyzers 2 | . . . . . 1 1 . . . . . . . . Garrison Access 4 | . . . . . . . . . 1 2 . 1 . . Total Hacks 109 | . 23 . 1 7 13 6 1 . 15 14 . 12 2 15 Successful 53 | . 14 . 1 4 3 4 1 . 7 9 . . . 10 Failed 56 | . 9 . . 3 10 2 . . 8 5 . 12 2 5 Catastrophic 6 | . . . . 1 1 . . . 1 1 . 2 . . Database Lockouts . | . . . . . . . . . . . . . . . Manual 36 | . 7 . 1 6 7 3 1 . 3 . . 4 4 . Terminals 69 | . 19 . . 6 11 3 1 . 8 . . 7 2 12 Fabricators 3 | . . . . . . . . . . 1 . 2 . . Repair Stations 9 | . . . . . . . . . . 9 . . . . Recycling Units 13 | . 4 . . . . . . . 2 2 . 2 . 3 Scanalyzers 5 | . . . . . 2 3 . . . . . . . . Garrison Access 8 | . . . . . . . . . 5 2 . 1 . . Terminal Hacks 31 | . 10 . 1 4 2 1 1 . 4 . . . . 8 Record 7 | . . . . . . . 1 . 3 . . . . 3 Part Schematic 3 | . 2 . . . . . . . 1 . . . . . Robot Analysis 1 | . 1 . . . . . . . . . . . . . Prototype ID Bank 2 | . 2 . . . . . . . . . . . . . Open Door 6 | . . . . 1 . . . . . . . . . 5 Level Access Points 1 | . 1 . . . . . . . . . . . . . Branch Access Points 3 | . 1 . . 1 . 1 . . . . . . . . Terminal Index 1 | . 1 . . . . . . . . . . . . . Locate Traps 1 | . 1 . . . . . . . . . . . . . Zone Layout 5 | . 1 . . 2 2 . . . . . . . . . EX-Prototype ID Bank 1 | . . . 1 . . . . . . . . . . . Fabricator Hacks 1 | . . . . . . . . . . 1 . . . . Network Status 1 | . . . . . . . . . . 1 . . . . Repair Station Hacks 6 | . . . . . . . . . . 6 . . . . Scan Component 4 | . . . . . . . . . . 4 . . . . Repair 2 | . . . . . . . . . . 2 . . . . Recycling Unit Hacks 7 | . 3 . . . . . . . 1 1 . . . 2 Report Inventory 5 | . 2 . . . . . . . 1 1 . . . 1 Retrieve Components 2 | . 1 . . . . . . . . . . . . 1 Scanalyzer 4 | . . . . . 1 3 . . . . . . . . Insert Component 3 | . . . . . 1 2 . . . . . . . . Analyze 1 | . . . . . . 1 . . . . . . . . Garrison Access Hacks 2 | . . . . . . . . . 1 1 . . . . Seal Access 2 | . . . . . . . . . 1 1 . . . . Unauthorized Hacks 2 | . 1 . . . . . . . 1 . . . . . Terminals 1 | . 1 . . . . . . . . . . . . . Track 1 | . 1 . . . . . . . . . . . . . Fabricators . | . . . . . . . . . . . . . . . Repair Stations . | . . . . . . . . . . . . . . . Recycling Units 1 | . . . . . . . . . 1 . . . . . Recyclers 1 | . . . . . . . . . 1 . . . . . Scanalyzers . | . . . . . . . . . . . . . . . Garrison Access . | . . . . . . . . . . . . . . . Data Cores Recovered . | . . . . . . . . . . . . . . . Used . | . . . . . . . . . . . . . . . Hacking Detections 36 | . 8 . . 2 4 2 1 . 4 5 . 5 1 4 Full Trace Events 13 | . 3 . . 2 2 . . . 1 1 . 2 . 2 Feedback Events 2 | . . . . . . . . . . 1 . . . 1 Corruption 2 | . . . . . . . . . . 1 . . . 1 Feedback Blocked . | . . . . . . . . . . . . . . . Robot Schematics Acquired . | . . . . . . . . . . . . . . . Robots Built . | . . . . . . . . . . . . . . . Matter . | . . . . . . . . . . . . . . . Time . | . . . . . . . . . . . . . . . Total Robot Build Rating . | . . . . . . . . . . . . . . . Part Schematics Acquired 4 | . 2 . . . . 1 . . 1 . . . . . Parts Built . | . . . . . . . . . . . . . . . Matter . | . . . . . . . . . . . . . . . Time . | . . . . . . . . . . . . . . . Total Part Build Rating . | . . . . . . . . . . . . . . . Parts Repaired 2 | . . . . . . . . . . 2 . . . . Time 44 | . . . . . . . . . . 44 . . . . Parts Recycled . | . . . . . . . . . . . . . . . Recycled Matter . | . . . . . . . . . . . . . . . Retrieved Matter . | . . . . . . . . . . . . . . . Retrieved Components 8 | . 6 . . . . . . . . . . . . 2 Parts Scanalyzed 1 | . . . . . . 1 . . . . . . . . Part Schematics Acquired 1 | . . . . . . 1 . . . . . . . . Parts Damaged . | . . . . . . . . . . . . . . . Bothacking | -11 -10 -10 -10 -9 -8 -7 -7 -7 -6 -5 -5 -5 -4 -4 ------------ Run | Scr Mat Min Exi Min Mat Fac Low Low Fac Fac Was Fac Fac Ext Used RIF Installer . | . . . . . . . . . . . . . . . Robots Hacked . | . . . . . . . . . . . . . . . Non-combat . | . . . . . . . . . . . . . . . Combat . | . . . . . . . . . . . . . . . Robot Hacks Applied . | . . . . . . . . . . . . . . . Relay Couplers Released 3 | . . . . . . . . . . 3 . . . . Machine Destruction 3 | . . . . . . . . . . 3 . . . . Robots Rewired 8 | . . . . . . . . . . . . . . 8 Allies Hacked . | . . . . . . . . . . . . . . . Hacks Repelled . | . . . . . . . . . . . . . . . Allies | -11 -10 -10 -10 -9 -8 -7 -7 -7 -6 -5 -5 -5 -4 -4 -------- Run | Scr Mat Min Exi Min Mat Fac Low Low Fac Fac Was Fac Fac Ext Total Allies 14 | . . . . . . . . . . . . . . 14 Largest Group 6 | . . . . . . . . . . . . . . 6 Highest-Rated Group 344 | . . . . . . . . . . . . . . 344 Highest-Rated Ally 156 | . . . . . . . . . . . . . . 156 Total Orders 1 | . . . . . . . . . . . . . . 1 AID 1 | . . . . . . . . . . . . . . 1 Ally Attacks 65 | . . . . . . . . . . . . . . 65 Total Damage 1718 | . . . . . . . . . . . . . . 1718 Kills 7 | . . . . . . . . . . . . . . 7 Allies Corrupted . | . . . . . . . . . . . . . . . Allies Melted . | . . . . . . . . . . . . . . . Intel | -11 -10 -10 -10 -9 -8 -7 -7 -7 -6 -5 -5 -5 -4 -4 ------- Run | Scr Mat Min Exi Min Mat Fac Low Low Fac Fac Was Fac Fac Ext Robot Analysis Total 1 | . 1 . . . . . . . . . . . . . Derelict Logs Recovered 2 | . . . . 1 . . 1 . . . . . . . Drone Launches . | . . . . . . . . . . . . . . . Drone Recoveries . | . . . . . . . . . . . . . . . Exploration | -11 -10 -10 -10 -9 -8 -7 -7 -7 -6 -5 -5 -5 -4 -4 ------------- Run | Scr Mat Min Exi Min Mat Fac Low Low Fac Fac Was Fac Fac Ext Turns Passed 15713 | 91 1450 218 1182 1253 1088 642 1824 57 1143 1690 302 1811 2034 928 Spaces Moved 6880 | 53 695 126 617 573 434 242 945 29 534 755 193 658 664 362 Core 209 | 5 1 . . . . . . . . . 147 26 . 30 Treads 6649 | 48 694 126 617 573 434 242 945 29 534 755 46 621 664 321 Legs 11 | . . . . . . . . . . . . . . 11 Wheels . | . . . . . . . . . . . . . . . Hover . | . . . . . . . . . . . . . . . Flight 11 | . . . . . . . . . . . . 11 . . Fastest Speed 40 | 50 160 160 160 200 180 180 180 180 180 180 50 40 180 50 Average Speed 177 | 149 160 160 186 200 193 180 180 180 180 180 83 167 192 168 Slowest Speed 250 | 160 250 160 200 200 200 180 180 180 180 180 200 180 200 200 Overloaded Moves . | . . . . . . . . . . . . . . . Propulsion Burnouts . | . . . . . . . . . . . . . . . Robots Hopped . | . . . . . . . . . . . . . . . Cave-ins Triggered 1 | . . . . . . . . . . . . . . 1 Exploration Rate (%) 41 | 4 94 34 91 95 37 5 86 6 12 19 77 11 15 41 Regions Visited 14 Branch Regions 6 Pre-discovered Areas 1 | . . . . 1 . . . . . . . . . . Known Exits Taken 3 | . 1 . . . . 1 . . 1 . . . . . Unknown Exits Taken 9 | 1 . 1 1 1 1 . 1 1 . . . 1 1 . Scrap Searched 7 | . . 1 . 1 . . 4 1 . . . . . . Spaces Dug 1 | . . . . . . . . . . . . . . 1 Terrain Destroyed 181 | . . . . 1 1 . . . 3 . 14 1 145 16 Melee 1 | . . . . . . . . . . . . . . 1 Projectile 34 | . . . . 1 1 . . . 3 . . 1 13 15 AOE 146 | . . . . . . . . . . . 14 . 132 . Terrain Rammed . | . . . . . . . . . . . . . . . Walls Destroyed . | . . . . . . . . . . . . . . . Machines Disabled . | . . . . . . . . . . . . . . . Actions | -11 -10 -10 -10 -9 -8 -7 -7 -7 -6 -5 -5 -5 -4 -4 --------- Run | Scr Mat Min Exi Min Mat Fac Low Low Fac Fac Was Fac Fac Ext Total 9687 | 62 895 137 649 671 622 430 1024 31 661 1066 305 1220 1318 596 Wait 1608 | . 53 7 10 70 84 162 40 . 30 237 66 287 508 54 Move 6868 | 52 694 125 616 572 433 241 944 29 533 755 192 657 663 362 Hop . | . . . . . . . . . . . . . . . Pick Up 201 | 4 22 1 18 7 15 6 4 . 14 15 2 47 27 19 Fast Attach 53 | 6 8 . 1 . 1 . . . 4 2 8 16 4 3 Attach 72 | . . . . . 3 2 2 . 3 4 15 12 12 19 Detach 4 | . . . . . . . . . . 1 . 2 1 . Swap 72 | . 8 . 1 2 3 6 6 . 4 16 2 10 11 3 Drop 141 | . 18 1 3 8 15 4 3 . 15 15 1 27 24 7 Fire 514 | . 65 3 . 9 63 9 16 2 53 21 13 160 68 32 Melee 58 | . 27 . . 3 5 . 7 . 5 . 6 . . 5 Ram 1 | . . . . . . . . . . . . . . 1 Kick . | . . . . . . . . . . . . . . . Crush 9 | . . . . . . . . . . . . . . 9 Escape Stasis 4 | . . . . . . . . . . . . 2 . 2 Rewire 82 | . . . . . . . 2 . . . . . . 80 Trap . | . . . . . . . . . . . . . . . Miscellaneous . | . . . . . . . . . . . . . . . Route ------- -11/Scrapyard -10/Materials (discovered 4 exits: *Mat x3 / *Min) -10/Mines -10/Exiles -9/Mines (discovered 2 exits: *Mat x2) -8/Materials -7/Factory (discovered 3 exits: *Fac / *Low x2) -7/Lower Caves -7/Lower Caves -6/Factory (discovered 2 exits: *Fac x2) -5/Factory -5/Waste -5/Factory -4/Factory -4/Extension History --------- Turn | Location | Event 5 | -11/Scrapyard | Discovered new exit (range 13) 92 | -11/Scrapyard | Entered Materials 306 | -10/Materials | Build established: Mutant 555 | -10/Materials | Discovered new exit (range 10) 1013 | -10/Materials | Identified exit to Materials 1013 | -10/Materials | Identified exit to Mines 1542 | -10/Materials | Entered Mines 1738 | -10/Mines | Deemed a non-threat by the Exiles lab entrance 1739 | -10/Mines | Discovered new exit (range 5) 1760 | -10/Mines | Entered Exiles 1800 | -10/Exiles | Met 8R-AWN 1823 | -10/Exiles | Met EX-HEX 1869 | -10/Exiles | Met EX-BIN 1888 | -10/Exiles | Aligned with FarCom system 1890 | -10/Exiles | Given EX-Vault access code 1973 | -10/Exiles | Opened EX-Vault 2014 | -10/Exiles | Found Gui. Plasma Cannon 2052 | -10/Exiles | Warned to stay clear of 0b10 Research branches 2103 | -10/Exiles | Met EX-DEC 2395 | -10/Exiles | Discovered new exit (range 12) 2501 | -10/Exiles | Build established: Hauler-Mutant 2653 | -10/Exiles | Visited The Gauntlet 2942 | -10/Exiles | Left Exiles lab with Gui. Plasma Cannon 2942 | -10/Exiles | Entered Mines 2943 | -9/Mines | Met a Derelict bent on vengeance 2944 | -9/Mines | Discovered new exit (range 12) 3051 | -9/Mines | YI-UF0 nonchalantly dropped a Grenade Launcher on the ground 3483 | -9/Mines | Destroyed YI-UF0 3797 | -9/Mines | Learned location of Zion (-7) 3851 | -9/Mines | Discovered new exit (range 10) 3888 | -9/Mines | Met a Derelict shopkeep closing up shop 4195 | -9/Mines | Entered Materials 4195 | -8/Materials | Evolved 4 slots: Propulsion x1, Utility x3 5072 | -8/Materials | Garrison activated, responded to threat 5135 | -8/Materials | Discovered new exit (range 10) 5283 | -8/Materials | Entered Factory 5283 | -7/Factory | Evolved 2 slots: Propulsion x1, Utility x1 5354 | -7/Factory | Discovered new exit (range 4) 5440 | -7/Factory | Discovered new exit (range 15) 5837 | -7/Factory | Identified exit to Lower Caves 5925 | -7/Factory | Entered Lower Caves 6214 | -7/Lower Caves | Spotted B-75 Beast 6218 | -7/Lower Caves | Learned 4 Factory zone layouts 6303 | -7/Lower Caves | Encountered a Warlord checkpoint 6426 | -7/Lower Caves | Attracted the attention of an 0b10 checkpoint 7072 | -7/Lower Caves | Discovered new exit (range 5) 7749 | -7/Lower Caves | Entered another Lower Caves area 7793 | -7/Lower Caves | Discovered new exit (range 5) 7806 | -7/Lower Caves | Entered Factory 7806 | -6/Factory | Evolved 2 slots: Utility x2 7807 | -6/Factory | Identified exit to Factory 8736 | -6/Factory | Discovered exit to Factory (range 16) 8949 | -6/Factory | Entered another Factory area 8949 | -5/Factory | Evolved 2 slots: Utility x2 9329 | -5/Factory | Spotted B-75 Beast 9826 | -5/Factory | Repaired Med. Treads 10416 | -5/Factory | Repaired Med. Treads 10639 | -5/Factory | Sucked down chute 10639 | -5/Factory | Entered Waste 10677 | -5/Waste | Spotted C-40 Crusher 10719 | -5/Waste | Spotted C-40 Crusher 10746 | -5/Waste | Spotted C-40 Crusher 10762 | -5/Waste | Crushed by Compactor (1 part destroyed, 1 dropped) 10765 | -5/Waste | Crushed by Compactor (1 part destroyed) 10768 | -5/Waste | Crushed by Compactor (1 part destroyed, 1 dropped) 10771 | -5/Waste | Crushed by Compactor (0 parts destroyed, 1 dropped) 10775 | -5/Waste | Destroyed C-40 Crusher 10775 | -5/Waste | Crushed by Compactor (1 part destroyed, 1 dropped) 10780 | -5/Waste | Crushed by Compactor (0 parts destroyed, 1 dropped) 10780 | -5/Waste | Spotted C-40 Crusher 10783 | -5/Waste | Crushed by Compactor (1 part destroyed, 1 dropped) 10786 | -5/Waste | Crushed by Compactor (1 part destroyed, 1 dropped) 10791 | -5/Waste | Crushed by Compactor (1 part destroyed) 10794 | -5/Waste | Crushed by Compactor (0 parts destroyed, 1 dropped) 10797 | -5/Waste | Crushed by Compactor (1 part destroyed) 10803 | -5/Waste | Crushed by Compactor (1 part destroyed) 10806 | -5/Waste | Crushed by Compactor (1 part destroyed, 1 dropped) 10812 | -5/Waste | Crushed by Compactor (1 part destroyed, 1 dropped) 10815 | -5/Waste | Crushed by Compactor (1 part destroyed, 1 dropped) 10818 | -5/Waste | Crushed by Compactor (1 part destroyed) 10824 | -5/Waste | Destroyed C-40 Crusher 10826 | -5/Waste | Crushed by Compactor (0 parts destroyed, 1 dropped) 10829 | -5/Waste | Crushed by Compactor (1 part destroyed) 10835 | -5/Waste | Crushed by Compactor (0 parts destroyed, 1 dropped) 10838 | -5/Waste | Crushed by Compactor (1 part destroyed, 1 dropped) 10869 | -5/Waste | Lost 22 parts (2p6n10u4w) 10903 | -5/Waste | Spotted C-40 Crusher 10917 | -5/Waste | Spotted C-40 Crusher 10931 | -5/Waste | Discovered new exit (range 13) 10941 | -5/Waste | Entered Factory 11065 | -5/Factory | Build established: Mutant 11842 | -5/Factory | Discovered new exit (range 13) 12021 | -5/Factory | System corruption reached 10% 12162 | -5/Factory | Build established: Hauler-Mutant 12211 | -5/Factory | Destroyed 7 combat bots 12443 | -5/Factory | Lost 4 parts (1n3u) 12752 | -5/Factory | Entered another Factory area 12752 | -4/Factory | Evolved 2 slots: Power x1, Weapon x1 13060 | -4/Factory | Build established: Scavenger-Gunner 14752 | -4/Factory | First assault squad dispatched 14764 | -4/Factory | Discovered new exit (range 12) 14786 | -4/Factory | Entered Extension 14820 | -4/Extension | Build established: Scavenger-Mutant 14876 | -4/Extension | Rescued a captive Derelict 15051 | -4/Extension | Rescued a captive Derelict 15137 | -4/Extension | Rescued a captive Derelict 15138 | -4/Extension | Rescued a captive Derelict 15180 | -4/Extension | Found Quantum Capacitor 15208 | -4/Extension | Build established: Scavenger-Gunner 15365 | -4/Extension | Crushed by falling debris 15365 | -4/Extension | System corruption reached 10% 15396 | -4/Extension | Lost 11 parts (1p3n6u1w) 15552 | -4/Extension | Rescued a captive Derelict 15624 | -4/Extension | Rescued A7 15626 | -4/Extension | Build established: Scavenger-Skirmisher 15646 | -4/Extension | Spotted B-86 Titan 15655 | -4/Extension | Spotted B-86 Titan 15680 | -4/Extension | Extracted ID and sensor layout for unrecognized location from A7's data core 15697 | -4/Extension | Released all parts (7) 15705 | -4/Extension | Core integrity fell below 50% 15712 | -4/Extension | Core integrity fell below 20% 15714 | -4/Extension | Destroyed by B-86 Titan with Railgun Last Messages --------------- 15699_ Slammed into U-05 Engineer. 15701_ Penetrated by Slug. 15702_ U-05 Engineer builds a Wall. 15702_ ALERT: Construction progress impeded, dispatching reinforcements to local area. 15704_ Knocked back. 15704_ Penetrated by Slug. 15704_ Slug penetrates Wall. 15704_ Knocked back. 15707_ Penetrated by Slug. 15707_ Knocked back. 15707_ Penetrated by Slug. 15707_ Slug penetrates Wall. 15711_ Knocked back. 15712_ B-86 Titan exits siege mode. 15712_ Connecting with Door Terminal... Feedback: System corruption (+1%). 15712_ ALERT: Suspicious activity at Terminal E001. Dispatching Investigation squad. 15714_ Penetrated by Slug. Map ----- +----------------------------------------------------+ | ???????????????????#[###?????????????????????????? | | ???????#???????????#[# #????#????????????????????? | | ??????????#?????####%##????#?? ??????????????????? | | ??????????#??#?###T#=##?#????#???????????????????? | | ????????#?#????#!![/!#???????????????????????????? | | ???????????#???#=#%#%#??????#????????????????????? | | ?????????#?????#####[#????#?#???#????????????????? | | ????????????#?#???##!#???####????????????????????? | | ??????????????????##*#????# #???#????????????????? | | ?????????????????###%######"#?? #????????????????? | | ????????????????####*### ##u###C###??????????????? | | ????????????????##|%%!!= "" ""#??????????????? | | ????????????????##!=%%[ " " #??????????????? | | ????????????????## !%! R #??????????????? | | ?????????????????# !% ##?????????????? | | ???????????####### #######????????? | | ???????? ?? ???????? | | ??????????? ??????? | | ??????????? ???????? | | ??????????? R RBB ???????? | | ??????????? BB BB ???????? | | ??????????######## BB #######????????? | | ?????????????????# #??????????????? | | ?????????????????# #??????????????? | | ?????????????????# #??????????????? | | ?????????????????# @ #??????????????? | | ?????????????????######T#"""#######??????????????? | | ??????????????????????##?????????????????????????? | | ?????????????????????????????????????????????????? | | | | | | | | | | | | | | | | | | | | | | | | | | | | | | | | | | | | | | | | | | | +----------------------------------------------------+ Best States ------------- Heat Dissipation 112 Coolant Potential 65 Energy Generation 37 Energy Capacity 815 Matter Stores 300 Matter Capacity 300 Sight Range 16 Terrain Scan Range 14 Terrain Scan Density 85 Additional Mass Support 12 Heat Shielding 100 Armor Coverage 1200 Resistance: KI 25 Resistance: EX 25 Utility Shielding 66 Weapon Cycling 20 Evasion (%) 62 Targeting Accuracy 8 Target Analysis 6 Core Analysis 6 Recoil Reduction 4 Particle Charging 20 Kinecelleration 30 Offensive Hacking 10 Item Schematics ----------------- Lgt. Armor Plating | -10/Materials | Hacked Lgt. Treads | -10/Materials | Hacked Imp. Medium Armor Plating | -7/Factory | Scanalyzed Hpw. Shock Rifle | -6/Factory | Hacked Robot Schematics ------------------ None Fabricated ------------ Nothing Alien Tech Used ----------------- None Achievements -------------- A New Friend Collateral Damage Let's See Who's Tougher Respectable Loadout Tank Challenges ------------ None Game ------ Seed GammaMiniDiverter Manual? 0 Play Time 04:20:12 Cumulative 29.1 hours Start 2021.06.30 @ 10:56:07 End 2021.07.02 @ 22:47:49 Sessions 3 Manual Loads 0 Difficulty Rogue Special Mode None Game No. 14 Rogue 14 Adventurer 0 Explorer 0 Win Type - Total 0 Types 0/0/0/0/0/0/0/0/0 Lore% 24 Gallery% 29 Achievement% 23 Wizard Run 0 Options --------- ASCII 0 Keyboard 0 Movement Numpad Keybinds 0 Fullscreen 1 Font 14/SmallcapsGlow Map View 72x54 Tactical HUD 1 Map Filters NONE Filters NONE Steam 1 RUN: 3803389f-cd79-4d4e-a235-ea8a5bbcd0fe